[Event "Titled Tuesday Blitz November 15 Late 2022"]
[White "Salman, Pavel"]
[Black "Yano, William Jorge Froes"]
[WhiteFideId "24153753"]
[BlackFideId "2112949"]
[WhiteElo "2187"]
[BlackElo "2122"]
[Result "1-0"]
[Round "06"]
[TimeControl "180+1"]
[Date "2022.11.16"]
[WhiteClock "0:00:15"]
[BlackClock "0:00:16"]

1. d4 {[%clk 0:02:59]}  Nf6 {[%clk 0:02:58]} 2. Nc3 {[%clk 0:03:00]}  c5 {[%clk 0:02:55]} 3. d5 {[%clk 0:02:57]}  e6 {[%clk 0:02:56]} 4. e4 {[%clk 0:02:47]}  exd5 {[%clk 0:02:56]} 5. exd5 {[%clk 0:02:48]}  d6 {[%clk 0:02:55]} 6. Nf3 {[%clk 0:02:47]}  g6 {[%clk 0:02:56]} 7. Bb5+ {[%clk 0:02:46]}  Nfd7 {[%clk 0:02:40]} 8. O-O {[%clk 0:02:39]}  Be7 {[%clk 0:02:30]} 9. Bh6 {[%clk 0:02:38]}  a6 {[%clk 0:02:30]} 10. Bd3 {[%clk 0:02:08]}  Ne5 {[%clk 0:02:18]} 11. Nxe5 {[%clk 0:01:53]}  dxe5 {[%clk 0:02:18]} 12. Bg7 {[%clk 0:01:53]}  Bf6 {[%clk 0:02:18]} 13. Bxh8 {[%clk 0:01:53]}  Bxh8 {[%clk 0:02:18]} 14. Re1 {[%clk 0:01:52]}  Kf8 {[%clk 0:02:07]} 15. Qf3 {[%clk 0:01:43]}  Nd7 {[%clk 0:01:52]} 16. Ne4 {[%clk 0:01:42]}  b5 {[%clk 0:01:47]} 17. c4 {[%clk 0:01:36]}  Rb8 {[%clk 0:01:40]} 18. cxb5 {[%clk 0:01:28]}  axb5 {[%clk 0:01:40]} 19. Bxb5 {[%clk 0:01:26]}  Nf6 {[%clk 0:01:08]} 20. Nxf6 {[%clk 0:01:21]}  Bxf6 {[%clk 0:01:06]} 21. a4 {[%clk 0:01:18]}  Kg7 {[%clk 0:01:06]} 22. Rac1 {[%clk 0:01:15]}  Qd6 {[%clk 0:01:04]} 23. Re2 {[%clk 0:00:59]}  Bf5 {[%clk 0:00:48]} 24. Bd3 {[%clk 0:00:50]}  Bd7 {[%clk 0:00:38]} 25. a5 {[%clk 0:00:50]}  Rb4 {[%clk 0:00:31]} 26. h3 {[%clk 0:00:46]}  Bg5 {[%clk 0:00:21]} 27. Rc4 {[%clk 0:00:42]}  Rb3 {[%clk 0:00:18]} 28. Rc3 {[%clk 0:00:32]}  Rb4 {[%clk 0:00:18]} 29. Re4 {[%clk 0:00:30]}  f5 {[%clk 0:00:16]} 30. Rxb4 {[%clk 0:00:29]}  cxb4 {[%clk 0:00:17]} 31. Rc4 {[%clk 0:00:17]}  e4 {[%clk 0:00:17]} 32. Bxe4 {[%clk 0:00:18]}  fxe4 {[%clk 0:00:18]} 33. Qxe4 {[%clk 0:00:17]}  Bf5 {[%clk 0:00:18]} 34. Qd4+ {[%clk 0:00:16]}  Bf6 {[%clk 0:00:18]} 35. Qa7+ {[%clk 0:00:17]}  Kh6 {[%clk 0:00:18]} 36. Qe3+ {[%clk 0:00:16]}  Bg5 {[%clk 0:00:18]} 37. Rh4+ {[%clk 0:00:15]}  Kg7 {[%clk 0:00:16]} 38. Qxg5 {[%clk 0:00:15]}  Qxd5 {[%clk 0:00:16]} 39. Qe7+ {[%clk 0:00:15]}  Qf7 {[%clk 0:00:15]} 40. Rxh7+ {[%clk 0:00:15]}  Kxh7 {[%clk 0:00:15]} 41. Qxf7+ {[%clk 0:00:15]}  Kh6 {[%clk 0:00:16]} 42. g4 {[%clk 0:00:15]}  Bc2 {[%clk 0:00:16]} 43. f4 {[%clk 0:00:15]}  b3 {[%clk 0:00:16]} 44. g5+ {[%clk 0:00:15]} 1-0


[Site "https://www.chess.com"]

[Event "Titled Tuesday Blitz November 15 Late 2022"]
[White "Sanchez Enriquez, Oscar Gerardo"]
[Black "Allahverdiyeva, Ayan"]
[WhiteFideId "5106311"]
[BlackFideId "13412590"]
[WhiteElo "2375"]
[BlackElo "2021"]
[Result "1-0"]
[Round "06"]
[TimeControl "180+1"]
[Date "2022.11.16"]
[WhiteClock "0:02:04"]
[BlackClock "0:02:04"]

1. e4 {[%clk 0:03:00]}  c5 {[%clk 0:02:59]} 2. Nf3 {[%clk 0:03:01]}  d6 {[%clk 0:02:59]} 3. Bc4 {[%clk 0:03:00]}  Nf6 {[%clk 0:02:57]} 4. Qe2 {[%clk 0:03:00]}  e6 {[%clk 0:02:56]} 5. Bb3 {[%clk 0:03:00]}  Nc6 {[%clk 0:02:56]} 6. O-O {[%clk 0:03:00]}  Be7 {[%clk 0:02:56]} 7. c3 {[%clk 0:03:01]}  O-O {[%clk 0:02:54]} 8. d4 {[%clk 0:03:01]}  cxd4 {[%clk 0:02:54]} 9. cxd4 {[%clk 0:03:02]}  e5 {[%clk 0:02:50]} 10. dxe5 {[%clk 0:03:02]}  dxe5 {[%clk 0:02:49]} 11. Rd1 {[%clk 0:03:02]}  Qb6 {[%clk 0:02:48]} 12. h3 {[%clk 0:02:57]}  Be6 {[%clk 0:02:42]} 13. Be3 {[%clk 0:02:52]}  Bc5 {[%clk 0:02:41]} 14. Bd5 {[%clk 0:02:23]}  Rad8 {[%clk 0:02:35]} 15. Nc3 {[%clk 0:02:23]}  Bd4 {[%clk 0:02:20]} 16. Bxc6 {[%clk 0:02:10]}  Bxe3 {[%clk 0:02:15]} 17. Qxe3 {[%clk 0:02:10]}  Qxe3 {[%clk 0:02:13]} 18. fxe3 {[%clk 0:02:10]}  bxc6 {[%clk 0:02:13]} 19. Nxe5 {[%clk 0:02:10]}  c5 {[%clk 0:02:13]} 20. Nc6 {[%clk 0:02:08]}  Ra8 {[%clk 0:02:08]} 21. e5 {[%clk 0:02:06]}  Bd7 {[%clk 0:02:07]} 22. Ne7+ {[%clk 0:02:04]}  Kh8 {[%clk 0:02:04]} 23. exf6 {[%clk 0:02:04]} 1-0


[Site "https://www.chess.com"]

[Event "Titled Tuesday Blitz November 15 Late 2022"]
[White "Sargsyan, Anna M."]
[Black "Avila Rodriguez, Joshua Ad"]
[WhiteFideId "13308130"]
[BlackFideId "5126444"]
[WhiteElo "2284"]
[BlackElo "2125"]
[Result "0-1"]
[Round "06"]
[TimeControl "180+1"]
[Date "2022.11.16"]
[WhiteClock "0:00:01"]
[BlackClock "0:00:46"]

1. d4 {[%clk 0:02:55]}  Nf6 {[%clk 0:02:59]} 2. c4 {[%clk 0:02:56]}  e6 {[%clk 0:03:00]} 3. Nf3 {[%clk 0:02:56]}  d5 {[%clk 0:02:59]} 4. Nc3 {[%clk 0:02:56]}  c5 {[%clk 0:02:55]} 5. cxd5 {[%clk 0:02:56]}  Nxd5 {[%clk 0:02:55]} 6. e4 {[%clk 0:02:56]}  Nxc3 {[%clk 0:02:55]} 7. bxc3 {[%clk 0:02:57]}  cxd4 {[%clk 0:02:55]} 8. cxd4 {[%clk 0:02:57]}  Bb4+ {[%clk 0:02:56]} 9. Bd2 {[%clk 0:02:58]}  Bxd2+ {[%clk 0:02:56]} 10. Qxd2 {[%clk 0:02:59]}  O-O {[%clk 0:02:56]} 11. Bc4 {[%clk 0:02:57]}  Nd7 {[%clk 0:02:57]} 12. O-O {[%clk 0:02:56]}  b6 {[%clk 0:02:57]} 13. Rad1 {[%clk 0:02:55]}  Bb7 {[%clk 0:02:57]} 14. Rfe1 {[%clk 0:02:56]}  Rc8 {[%clk 0:02:57]} 15. Bb3 {[%clk 0:02:50]}  h6 {[%clk 0:02:58]} 16. h3 {[%clk 0:02:49]}  Nf6 {[%clk 0:02:57]} 17. Qf4 {[%clk 0:02:36]}  Qc7 {[%clk 0:02:56]} 18. e5 {[%clk 0:02:36]}  Nd5 {[%clk 0:02:44]} 19. Qg3 {[%clk 0:02:35]}  b5 {[%clk 0:02:35]} 20. Nh2 {[%clk 0:02:34]}  a5 {[%clk 0:02:30]} 21. Ng4 {[%clk 0:02:20]}  Kh8 {[%clk 0:02:28]} 22. Rd3 {[%clk 0:01:50]}  Nb4 {[%clk 0:02:03]} 23. Rde3 {[%clk 0:01:44]}  a4 {[%clk 0:02:02]} 24. Nxh6 {[%clk 0:01:26]}  gxh6 {[%clk 0:01:50]} 25. Qh4 {[%clk 0:01:25]}  Kh7 {[%clk 0:01:37]} 26. Bd1 {[%clk 0:01:11]}  Qd8 {[%clk 0:01:32]} 27. Qg3 {[%clk 0:00:44]}  Rg8 {[%clk 0:01:15]} 28. Qf4 {[%clk 0:00:41]}  Rxg2+ {[%clk 0:01:14]} 29. Kf1 {[%clk 0:00:41]}  Rg7 {[%clk 0:01:00]} 30. h4 {[%clk 0:00:03]}  Nd5 {[%clk 0:00:50]} 31. Qe4+ {[%clk 0:00:03]}  Kh8 {[%clk 0:00:50]} 32. Rd3 {[%clk 0:00:01]}  Qg8 {[%clk 0:00:46]} 0-1


[Site "https://www.chess.com"]

[Event "Titled Tuesday Blitz November 15 Late 2022"]
[White "Saveliev, Alexei"]
[Black "Artemenko, Oleg"]
[WhiteFideId "24128546"]
[BlackFideId "14201798"]
[WhiteElo "2290"]
[BlackElo "2287"]
[Result "1-0"]
[Round "06"]
[TimeControl "180+1"]
[Date "2022.11.16"]
[WhiteClock "0:00:01"]
[BlackClock "0:00:07"]

1. c4 {[%clk 0:03:00]}  e6 {[%clk 0:02:56]} 2. Nc3 {[%clk 0:03:00]}  d5 {[%clk 0:02:56]} 3. cxd5 {[%clk 0:03:01]}  exd5 {[%clk 0:02:56]} 4. d4 {[%clk 0:03:02]}  h6 {[%clk 0:02:54]} 5. Nf3 {[%clk 0:03:02]}  Nf6 {[%clk 0:02:53]} 6. Bf4 {[%clk 0:02:58]}  c6 {[%clk 0:02:52]} 7. e3 {[%clk 0:02:58]}  Be7 {[%clk 0:02:52]} 8. Bd3 {[%clk 0:02:58]}  Nbd7 {[%clk 0:02:51]} 9. O-O {[%clk 0:02:57]}  Nf8 {[%clk 0:02:51]} 10. Qc2 {[%clk 0:02:56]}  Ne6 {[%clk 0:02:52]} 11. Bg3 {[%clk 0:02:54]}  O-O {[%clk 0:02:50]} 12. Rab1 {[%clk 0:02:54]}  a5 {[%clk 0:02:49]} 13. a3 {[%clk 0:02:55]}  Nh5 {[%clk 0:02:46]} 14. b4 {[%clk 0:02:51]}  Nxg3 {[%clk 0:02:46]} 15. hxg3 {[%clk 0:02:51]}  axb4 {[%clk 0:02:46]} 16. axb4 {[%clk 0:02:52]}  Bf6 {[%clk 0:02:39]} 17. Rfd1 {[%clk 0:02:49]}  Ra3 {[%clk 0:02:35]} 18. Qb2 {[%clk 0:02:37]}  Ra8 {[%clk 0:02:07]} 19. Qb3 {[%clk 0:02:36]}  Bd7 {[%clk 0:02:06]} 20. b5 {[%clk 0:02:36]}  Qc7 {[%clk 0:02:05]} 21. Rdc1 {[%clk 0:02:29]}  Qd6 {[%clk 0:02:02]} 22. Na4 {[%clk 0:02:26]}  Ra5 {[%clk 0:01:58]} 23. Nb6 {[%clk 0:02:13]}  Be8 {[%clk 0:01:52]} 24. Ra1 {[%clk 0:01:57]}  Rxa1 {[%clk 0:01:42]} 25. Rxa1 {[%clk 0:01:58]}  Nc7 {[%clk 0:01:38]} 26. bxc6 {[%clk 0:01:48]}  Bxc6 {[%clk 0:01:39]} 27. Ra5 {[%clk 0:01:45]}  g6 {[%clk 0:01:36]} 28. Qb1 {[%clk 0:01:33]}  Kg7 {[%clk 0:01:33]} 29. Nh2 {[%clk 0:01:20]}  h5 {[%clk 0:01:31]} 30. Nf3 {[%clk 0:01:12]}  Ne6 {[%clk 0:01:19]} 31. Qb3 {[%clk 0:01:05]}  Rd8 {[%clk 0:01:15]} 32. Qa3 {[%clk 0:00:51]}  Qc7 {[%clk 0:01:08]} 33. Qb3 {[%clk 0:00:47]}  Qd6 {[%clk 0:01:05]} 34. Qa3 {[%clk 0:00:47]}  Qxa3 {[%clk 0:01:03]} 35. Rxa3 {[%clk 0:00:47]}  Rb8 {[%clk 0:01:02]} 36. Rb3 {[%clk 0:00:34]}  Nc7 {[%clk 0:00:57]} 37. Rb1 {[%clk 0:00:31]}  Na8 {[%clk 0:00:56]} 38. Kf1 {[%clk 0:00:26]}  Bd8 {[%clk 0:00:52]} 39. Nxa8 {[%clk 0:00:25]}  Rxa8 {[%clk 0:00:53]} 40. Ne5 {[%clk 0:00:26]}  Ra3 {[%clk 0:00:50]} 41. Bb5 {[%clk 0:00:22]}  Rc3 {[%clk 0:00:45]} 42. Bxc6 {[%clk 0:00:19]}  bxc6 {[%clk 0:00:46]} 43. Rb7 {[%clk 0:00:18]}  Ba5 {[%clk 0:00:46]} 44. Rxf7+ {[%clk 0:00:16]}  Kh6 {[%clk 0:00:45]} 45. g4 {[%clk 0:00:15]}  hxg4 {[%clk 0:00:38]} 46. Nxg4+ {[%clk 0:00:16]}  Kh5 {[%clk 0:00:38]} 47. Ne5 {[%clk 0:00:16]}  Kg5 {[%clk 0:00:33]} 48. Ke2 {[%clk 0:00:14]}  Rc2+ {[%clk 0:00:30]} 49. Kf3 {[%clk 0:00:14]}  Be1 {[%clk 0:00:30]} 50. Kg3 {[%clk 0:00:12]}  Re2 {[%clk 0:00:28]} 51. Rf3 {[%clk 0:00:04]}  Ba5 {[%clk 0:00:23]} 52. Nf7+ {[%clk 0:00:02]}  Kh5 {[%clk 0:00:23]} 53. Kf4 {[%clk 0:00:02]}  Bc7+ {[%clk 0:00:21]} 54. Ne5 {[%clk 0:00:02]}  g5+ {[%clk 0:00:17]} 55. Kf5 {[%clk 0:00:03]}  g4 {[%clk 0:00:17]} 56. Rf4 {[%clk 0:00:02]}  g3 {[%clk 0:00:16]} 57. fxg3 {[%clk 0:00:01]}  Bd8 {[%clk 0:00:15]} 58. g4+ {[%clk 0:00:01]}  Kh6 {[%clk 0:00:14]} 59. g5+ {[%clk 0:00:02]}  Kg7 {[%clk 0:00:15]} 60. g4 {[%clk 0:00:02]}  Rxe3 {[%clk 0:00:15]} 61. Nxc6 {[%clk 0:00:02]}  Bc7 {[%clk 0:00:16]} 62. Ne5 {[%clk 0:00:02]}  Ra3 {[%clk 0:00:14]} 63. Ke6 {[%clk 0:00:02]}  Ra6+ {[%clk 0:00:14]} 64. Kxd5 {[%clk 0:00:03]}  Bd8 {[%clk 0:00:15]} 65. Rf7+ {[%clk 0:00:02]}  Kg8 {[%clk 0:00:16]} 66. g6 {[%clk 0:00:02]}  Ra5+ {[%clk 0:00:16]} 67. Ke6 {[%clk 0:00:02]}  Ra6+ {[%clk 0:00:17]} 68. Kf5 {[%clk 0:00:03]}  Bh4 {[%clk 0:00:17]} 69. Rd7 {[%clk 0:00:03]}  Ra8 {[%clk 0:00:17]} 70. d5 {[%clk 0:00:03]}  Rf8+ {[%clk 0:00:18]} 71. Rf7 {[%clk 0:00:03]}  Rd8 {[%clk 0:00:17]} 72. Ke6 {[%clk 0:00:04]}  Re8+ {[%clk 0:00:17]} 73. Kf5 {[%clk 0:00:04]}  Rd8 {[%clk 0:00:18]} 74. Nd7 {[%clk 0:00:04]}  Rc8 {[%clk 0:00:17]} 75. d6 {[%clk 0:00:04]}  Rd8 {[%clk 0:00:17]} 76. Ke6 {[%clk 0:00:04]}  Re8+ {[%clk 0:00:16]} 77. Kd5 {[%clk 0:00:04]}  Re1 {[%clk 0:00:16]} 78. Nf6+ {[%clk 0:00:04]}  Bxf6 {[%clk 0:00:16]} 79. Rxf6 {[%clk 0:00:05]}  Kg7 {[%clk 0:00:16]} 80. Re6 {[%clk 0:00:04]}  Rd1+ {[%clk 0:00:17]} 81. Kc6 {[%clk 0:00:05]}  Rc1+ {[%clk 0:00:18]} 82. Kd7 {[%clk 0:00:05]}  Ra1 {[%clk 0:00:18]} 83. Ke7 {[%clk 0:00:06]}  Ra7+ {[%clk 0:00:18]} 84. d7 {[%clk 0:00:06]}  Rb7 {[%clk 0:00:19]} 85. g5 {[%clk 0:00:06]}  Ra7 {[%clk 0:00:19]} 86. Ke8 {[%clk 0:00:06]}  Kg8 {[%clk 0:00:13]} 87. d8=Q {[%clk 0:00:04]}  Rg7 {[%clk 0:00:13]} 88. Re7 {[%clk 0:00:01]}  Rxg6 {[%clk 0:00:07]} 89. Kd7# {[%clk 0:00:01]} 1-0


[Site "https://www.chess.com"]

[Event "Titled Tuesday Blitz November 15 Late 2022"]
[White "Silva Lucena, Cristian"]
[Black "Martinez Reyes, Pedro Ramon"]
[WhiteFideId "2232588"]
[BlackFideId "3901807"]
[WhiteElo "2223"]
[BlackElo "2354"]
[Result "1-0"]
[Round "06"]
[TimeControl "180+1"]
[Date "2022.11.16"]
[WhiteClock "0:00:11"]
[BlackClock "0:00:07"]

1. e4 {[%clk 0:03:00]}  c6 {[%clk 0:02:59]} 2. d4 {[%clk 0:03:00]}  d5 {[%clk 0:03:00]} 3. e5 {[%clk 0:03:01]}  Bf5 {[%clk 0:02:59]} 4. h4 {[%clk 0:03:01]}  h5 {[%clk 0:02:58]} 5. Bd3 {[%clk 0:03:02]}  Qc8 {[%clk 0:02:54]} 6. Nf3 {[%clk 0:02:59]}  Bxd3 {[%clk 0:02:54]} 7. Qxd3 {[%clk 0:02:59]}  Qg4 {[%clk 0:02:55]} 8. O-O {[%clk 0:02:57]}  Nh6 {[%clk 0:02:53]} 9. c4 {[%clk 0:02:51]}  Qe4 {[%clk 0:02:45]} 10. Qb3 {[%clk 0:02:48]}  b6 {[%clk 0:02:30]} 11. Nc3 {[%clk 0:02:48]}  dxc4 {[%clk 0:02:25]} 12. Qxc4 {[%clk 0:02:49]}  Qg4 {[%clk 0:02:24]} 13. Bg5 {[%clk 0:02:18]}  f6 {[%clk 0:02:17]} 14. Be3 {[%clk 0:01:47]}  Nf5 {[%clk 0:02:16]} 15. Rfe1 {[%clk 0:01:47]}  b5 {[%clk 0:01:49]} 16. Nxb5 {[%clk 0:01:15]}  Nxe3 {[%clk 0:01:42]} 17. Rxe3 {[%clk 0:00:42]}  cxb5 {[%clk 0:01:41]} 18. Qd5 {[%clk 0:00:42]}  g5 {[%clk 0:00:19]} 19. Qxa8 {[%clk 0:00:41]}  gxh4 {[%clk 0:00:19]} 20. Qxb8+ {[%clk 0:00:32]}  Kf7 {[%clk 0:00:19]} 21. e6+ {[%clk 0:00:30]}  Kg6 {[%clk 0:00:19]} 22. Qb7 {[%clk 0:00:21]}  Bh6 {[%clk 0:00:16]} 23. Qe4+ {[%clk 0:00:20]}  f5 {[%clk 0:00:16]} 24. Ne5+ {[%clk 0:00:18]}  Kf6 {[%clk 0:00:14]} 25. Nxg4+ {[%clk 0:00:18]}  hxg4 {[%clk 0:00:15]} 26. Qe5+ {[%clk 0:00:18]}  Kg6 {[%clk 0:00:16]} 27. Ree1 {[%clk 0:00:17]}  Bg7 {[%clk 0:00:15]} 28. Qxb5 {[%clk 0:00:17]}  h3 {[%clk 0:00:15]} 29. g3 {[%clk 0:00:16]}  Bxd4 {[%clk 0:00:15]} 30. Qd3 {[%clk 0:00:11]}  Bf6 {[%clk 0:00:16]} 31. Kh2 {[%clk 0:00:10]}  Rb8 {[%clk 0:00:15]} 32. b3 {[%clk 0:00:10]}  Rc8 {[%clk 0:00:14]} 33. Rac1 {[%clk 0:00:10]}  Rb8 {[%clk 0:00:15]} 34. Rc5 {[%clk 0:00:11]}  Rd8 {[%clk 0:00:09]} 35. Qxf5+ {[%clk 0:00:11]}  Kg7 {[%clk 0:00:09]} 36. Qxg4+ {[%clk 0:00:11]}  Kf8 {[%clk 0:00:09]} 37. Qg6 {[%clk 0:00:11]}  Rd2 {[%clk 0:00:07]} 38. Qf7# {[%clk 0:00:11]} 1-0


[Site "https://www.chess.com"]

[Event "Titled Tuesday Blitz November 15 Late 2022"]
[White "Sivakumar, Shaashwath"]
[Black "Arbunic Castro, Giovanna"]
[WhiteFideId "30912156"]
[BlackFideId "3400549"]
[WhiteElo "2137"]
[BlackElo "1954"]
[Result "1-0"]
[Round "06"]
[TimeControl "180+1"]
[Date "2022.11.16"]
[WhiteClock "0:00:12"]
[BlackClock "0:00:02"]

1. d4 {[%clk 0:03:00]}  Nf6 {[%clk 0:02:57]} 2. c4 {[%clk 0:02:43]}  g6 {[%clk 0:02:56]} 3. Nc3 {[%clk 0:02:43]}  Bg7 {[%clk 0:02:55]} 4. e4 {[%clk 0:02:42]}  d6 {[%clk 0:02:54]} 5. f3 {[%clk 0:02:39]}  Nbd7 {[%clk 0:02:48]} 6. Nge2 {[%clk 0:02:38]}  c5 {[%clk 0:02:46]} 7. d5 {[%clk 0:02:36]}  O-O {[%clk 0:02:43]} 8. Ng3 {[%clk 0:02:35]}  a6 {[%clk 0:02:41]} 9. a4 {[%clk 0:02:34]}  Qb6 {[%clk 0:02:35]} 10. Be2 {[%clk 0:02:31]}  e6 {[%clk 0:02:31]} 11. O-O {[%clk 0:02:29]}  exd5 {[%clk 0:02:29]} 12. cxd5 {[%clk 0:02:28]}  c4+ {[%clk 0:02:24]} 13. Kh1 {[%clk 0:02:15]}  Ne5 {[%clk 0:02:11]} 14. a5 {[%clk 0:01:58]}  Qc5 {[%clk 0:01:51]} 15. Bd2 {[%clk 0:01:40]}  b5 {[%clk 0:01:31]} 16. axb6 {[%clk 0:01:24]}  Qxb6 {[%clk 0:01:28]} 17. Na4 {[%clk 0:01:24]}  Qb3 {[%clk 0:01:23]} 18. Qxb3 {[%clk 0:01:08]}  cxb3 {[%clk 0:01:21]} 19. Rfc1 {[%clk 0:00:53]}  Rb8 {[%clk 0:01:03]} 20. Ba5 {[%clk 0:00:41]}  Bd7 {[%clk 0:00:59]} 21. Bc7 {[%clk 0:00:35]}  Rb4 {[%clk 0:00:57]} 22. Bxd6 {[%clk 0:00:34]}  Rxa4 {[%clk 0:00:56]} 23. Rxa4 {[%clk 0:00:23]}  Bxa4 {[%clk 0:00:54]} 24. Bxe5 {[%clk 0:00:21]}  Nxe4 {[%clk 0:00:48]} 25. Bxg7 {[%clk 0:00:18]}  Nxg3+ {[%clk 0:00:47]} 26. hxg3 {[%clk 0:00:19]}  Kxg7 {[%clk 0:00:47]} 27. Bxa6 {[%clk 0:00:19]}  Rd8 {[%clk 0:00:42]} 28. Bb7 {[%clk 0:00:16]}  Kf6 {[%clk 0:00:38]} 29. Bc6 {[%clk 0:00:16]}  Ke5 {[%clk 0:00:35]} 30. Bxa4 {[%clk 0:00:14]}  Rxd5 {[%clk 0:00:34]} 31. Re1+ {[%clk 0:00:13]}  Kf6 {[%clk 0:00:31]} 32. Re2 {[%clk 0:00:10]}  Rd3 {[%clk 0:00:28]} 33. Kg1 {[%clk 0:00:10]}  Kg5 {[%clk 0:00:24]} 34. Kf2 {[%clk 0:00:10]}  f5 {[%clk 0:00:24]} 35. Bb5 {[%clk 0:00:06]}  Rd1 {[%clk 0:00:21]} 36. Bc4 {[%clk 0:00:06]}  Rd4 {[%clk 0:00:18]} 37. f4+ {[%clk 0:00:07]}  Kg4 {[%clk 0:00:16]} 38. Bxb3 {[%clk 0:00:07]}  Rb4 {[%clk 0:00:16]} 39. Bd1 {[%clk 0:00:07]}  Kh5 {[%clk 0:00:10]} 40. Re4+ {[%clk 0:00:07]}  Kh6 {[%clk 0:00:05]} 41. Rxb4 {[%clk 0:00:07]}  Kg7 {[%clk 0:00:03]} 42. Rb7+ {[%clk 0:00:07]}  Kf6 {[%clk 0:00:03]} 43. b3 {[%clk 0:00:08]}  Ke6 {[%clk 0:00:03]} 44. b4 {[%clk 0:00:08]}  Kd6 {[%clk 0:00:03]} 45. Rxh7 {[%clk 0:00:09]}  Kc6 {[%clk 0:00:03]} 46. Rg7 {[%clk 0:00:10]}  Kb5 {[%clk 0:00:02]} 47. Rxg6 {[%clk 0:00:11]}  Kxb4 {[%clk 0:00:02]} 48. Rf6 {[%clk 0:00:11]}  Kc3 {[%clk 0:00:02]} 49. Rxf5 {[%clk 0:00:12]}  Kd2 {[%clk 0:00:02]} 50. Re5 {[%clk 0:00:12]} 1-0


[Site "https://www.chess.com"]

[Event "Titled Tuesday Blitz November 15 Late 2022"]
[White "Sonnenschein, Philipp"]
[Black "Andreassen, Lars"]
[WhiteFideId "16250877"]
[BlackFideId "1504878"]
[WhiteElo "2225"]
[BlackElo "2119"]
[Result "1/2-1/2"]
[Round "06"]
[TimeControl "180+1"]
[Date "2022.11.16"]
[WhiteClock "0:00:19"]
[BlackClock "0:00:11"]

1. e4 {[%clk 0:03:00]}  g6 {[%clk 0:02:59]} 2. d4 {[%clk 0:03:01]}  Bg7 {[%clk 0:02:59]} 3. Nc3 {[%clk 0:03:01]}  d6 {[%clk 0:02:59]} 4. f4 {[%clk 0:03:01]}  a6 {[%clk 0:02:59]} 5. Nf3 {[%clk 0:03:01]}  b5 {[%clk 0:02:56]} 6. Bd3 {[%clk 0:03:01]}  Bb7 {[%clk 0:02:56]} 7. Qe2 {[%clk 0:02:53]}  Nd7 {[%clk 0:02:56]} 8. O-O {[%clk 0:02:49]}  c5 {[%clk 0:02:56]} 9. dxc5 {[%clk 0:02:40]}  Nxc5 {[%clk 0:02:55]} 10. e5 {[%clk 0:02:29]}  dxe5 {[%clk 0:02:43]} 11. fxe5 {[%clk 0:02:15]}  Nxd3 {[%clk 0:02:41]} 12. cxd3 {[%clk 0:02:14]}  Nh6 {[%clk 0:02:37]} 13. Bg5 {[%clk 0:01:48]}  O-O {[%clk 0:02:33]} 14. Rad1 {[%clk 0:01:46]}  Nf5 {[%clk 0:02:29]} 15. d4 {[%clk 0:01:33]}  Qb6 {[%clk 0:02:12]} 16. Kh1 {[%clk 0:01:27]}  Bxf3 {[%clk 0:01:38]} 17. Rxf3 {[%clk 0:01:26]}  Nxd4 {[%clk 0:01:38]} 18. Qe3 {[%clk 0:01:26]}  Rfd8 {[%clk 0:01:26]} 19. Rf4 {[%clk 0:01:25]}  b4 {[%clk 0:01:10]} 20. Na4 {[%clk 0:01:08]}  Qb5 {[%clk 0:00:59]} 21. Rfxd4 {[%clk 0:00:58]}  Rxd4 {[%clk 0:00:59]} 22. Qxd4 {[%clk 0:00:59]}  Qxa4 {[%clk 0:00:57]} 23. Bxe7 {[%clk 0:00:58]}  Qxa2 {[%clk 0:00:53]} 24. Bf6 {[%clk 0:00:53]}  Bf8 {[%clk 0:00:48]} 25. h4 {[%clk 0:00:42]}  h5 {[%clk 0:00:40]} 26. Rc1 {[%clk 0:00:36]}  Qe6 {[%clk 0:00:35]} 27. Rc7 {[%clk 0:00:35]}  Rc8 {[%clk 0:00:29]} 28. Qa7 {[%clk 0:00:30]}  Rxc7 {[%clk 0:00:28]} 29. Qxc7 {[%clk 0:00:31]}  Qg4 {[%clk 0:00:23]} 30. Qb8 {[%clk 0:00:28]}  Qd7 {[%clk 0:00:13]} 31. Kh2 {[%clk 0:00:25]}  a5 {[%clk 0:00:12]} 32. Qa8 {[%clk 0:00:25]}  a4 {[%clk 0:00:12]} 33. Bg5 {[%clk 0:00:24]}  Kg7 {[%clk 0:00:10]} 34. Bf6+ {[%clk 0:00:22]}  Kg8 {[%clk 0:00:11]} 35. Bg5 {[%clk 0:00:23]}  Kg7 {[%clk 0:00:11]} 36. Bf6+ {[%clk 0:00:19]}  Kg8 {[%clk 0:00:11]} 1/2-1/2


[Site "https://www.chess.com"]

[Event "Titled Tuesday Blitz November 15 Late 2022"]
[White "Tan, Ralph"]
[Black "Sailer, Mike"]
[WhiteFideId "30966590"]
[BlackFideId "2012901"]
[WhiteElo "2059"]
[BlackElo "2109"]
[Result "1-0"]
[Round "06"]
[TimeControl "180+1"]
[Date "2022.11.16"]
[WhiteClock "0:00:34"]
[BlackClock "0:00:01"]

1. Nf3 {[%clk 0:03:00]}  d5 {[%clk 0:02:44]} 2. g3 {[%clk 0:03:00]}  Bf5 {[%clk 0:02:42]} 3. Bg2 {[%clk 0:03:01]}  e6 {[%clk 0:02:41]} 4. O-O {[%clk 0:03:01]}  Nf6 {[%clk 0:02:40]} 5. d4 {[%clk 0:03:01]}  Be7 {[%clk 0:02:39]} 6. Nh4 {[%clk 0:03:01]}  Bg4 {[%clk 0:02:39]} 7. h3 {[%clk 0:02:59]}  Bh5 {[%clk 0:02:39]} 8. g4 {[%clk 0:02:58]}  Ne4 {[%clk 0:02:40]} 9. gxh5 {[%clk 0:02:52]}  Bxh4 {[%clk 0:02:39]} 10. c4 {[%clk 0:02:50]}  c6 {[%clk 0:02:35]} 11. Nc3 {[%clk 0:02:44]}  Nxc3 {[%clk 0:02:21]} 12. bxc3 {[%clk 0:02:45]}  O-O {[%clk 0:02:15]} 13. h6 {[%clk 0:02:43]}  g6 {[%clk 0:02:11]} 14. c5 {[%clk 0:02:26]}  Nd7 {[%clk 0:02:05]} 15. Rb1 {[%clk 0:02:23]}  b6 {[%clk 0:02:03]} 16. cxb6 {[%clk 0:02:20]}  axb6 {[%clk 0:01:59]} 17. Qc2 {[%clk 0:02:20]}  e5 {[%clk 0:01:44]} 18. e4 {[%clk 0:02:16]}  exd4 {[%clk 0:01:35]} 19. cxd4 {[%clk 0:02:14]}  dxe4 {[%clk 0:01:33]} 20. Bxe4 {[%clk 0:02:00]}  Rc8 {[%clk 0:01:26]} 21. Be3 {[%clk 0:01:18]}  c5 {[%clk 0:01:13]} 22. dxc5 {[%clk 0:01:13]}  Nxc5 {[%clk 0:01:10]} 23. Bg2 {[%clk 0:01:12]}  Bf6 {[%clk 0:00:59]} 24. Rfd1 {[%clk 0:01:09]}  Qc7 {[%clk 0:00:51]} 25. Rd5 {[%clk 0:01:05]}  Rfd8 {[%clk 0:00:40]} 26. Rbd1 {[%clk 0:01:04]}  Rxd5 {[%clk 0:00:40]} 27. Rxd5 {[%clk 0:01:05]}  Rd8 {[%clk 0:00:36]} 28. Rxd8+ {[%clk 0:01:02]}  Qxd8 {[%clk 0:00:34]} 29. Bxc5 {[%clk 0:00:57]}  bxc5 {[%clk 0:00:33]} 30. Qxc5 {[%clk 0:00:58]}  Bg5 {[%clk 0:00:20]} 31. Bd5 {[%clk 0:00:55]}  Bxh6 {[%clk 0:00:19]} 32. Qc4 {[%clk 0:00:48]}  Qg5+ {[%clk 0:00:13]} 33. Kf1 {[%clk 0:00:47]}  Qc1+ {[%clk 0:00:10]} 34. Qxc1 {[%clk 0:00:47]}  Bxc1 {[%clk 0:00:10]} 35. a4 {[%clk 0:00:47]}  Ba3 {[%clk 0:00:03]} 36. a5 {[%clk 0:00:46]}  Kf8 {[%clk 0:00:03]} 37. a6 {[%clk 0:00:45]}  Bc5 {[%clk 0:00:02]} 38. Ke2 {[%clk 0:00:43]}  Ke7 {[%clk 0:00:03]} 39. f4 {[%clk 0:00:43]}  f6 {[%clk 0:00:03]} 40. Kd3 {[%clk 0:00:38]}  g5 {[%clk 0:00:01]} 41. Kc4 {[%clk 0:00:37]}  Kd6 {[%clk 0:00:01]} 42. fxg5 {[%clk 0:00:34]}  fxg5 {[%clk 0:00:01]} 43. Be4 {[%clk 0:00:34]} 1-0


[Site "https://www.chess.com"]